bitfinex-derivatives/quotes_BTCF0:USTF0_20250106
["timestamp","ask_amount","ask_price","bid_price","bid_amount"]
[1736198964004,0.269744,102090.0,102080.0,0.29250138]
[1736198964198,0.59372732,102090.0,102080.0,0.29250138]
[1736198964388,0.59372732,102090.0,102070.0,0.35148341]
[1736198964593,0.50174066,102080.0,102070.0,0.35148341]
[1736198964799,0.50174066,102080.0,102070.0,0.39969255]
[1736198965102,0.2208,102070.0,102050.0,0.048962]
[1736198965304,0.5170102,102060.0,102050.0,0.048962]
[1736198965504,0.409758,102060.0,102050.0,0.048962]
[1736198965696,0.409758,102060.0,102050.0,0.14095366]
[1736198965903,0.409758,102060.0,102050.0,0.048962]
[1736198966402,0.409758,102060.0,102050.0,0.057962]
[1736198967297,0.409758,102060.0,102050.0,0.064962]
[1736198967696,0.409758,102060.0,102050.0,0.063962]
[1736198967899,0.3608,102060.0,102050.0,0.15595366]
[1736198968507,0.3608,102060.0,102050.0,0.20126069]
[1736198968800,0.86254966,102060.0,102050.0,0.06030703]
[1736198969004,0.87776793,102060.0,102050.0,0.06030703]
[1736198969304,0.86254966,102060.0,102050.0,0.06030703]
[1736198969701,0.86254966,102060.0,102050.0,0.012]
[1736198971006,1.08334966,102060.0,102050.0,0.012]
[1736198971805,0.305549,102080.0,102050.0,0.012]
[1736198971806,0.01519877,102080.0,102070.0,0.048954]
[1736198972109,0.20528116,102090.0,102070.0,0.98584466]
[1736198972404,0.20528116,102090.0,102080.0,0.45279166]
[1736198972599,0.20528116,102090.0,102080.0,0.50174066]
[1736198973604,0.290041,102100.0,102080.0,0.50174066]
[1736198973802,0.290041,102100.0,102090.0,0.45279166]
[1736198975108,0.290041,102100.0,102090.0,0.45379166]
[1736198978610,0.290041,102100.0,102090.0,0.50223588]
[1736198978809,0.290041,102100.0,102090.0,0.55117988]
[1736198979109,0.169732,102120.0,102100.0,0.048939]
[1736198979317,0.290532,102120.0,102110.0,0.86252566]
[1736198981607,0.290532,102120.0,102110.0,0.86352566]
[1736198985130,0.169732,102120.0,102110.0,0.86352566]
[1736198985316,0.048932,102120.0,102110.0,0.86352566]
[1736198985823,0.048932,102120.0,102110.0,0.53319684]
[1736198986022,0.048932,102120.0,102110.0,0.27008752]
[1736198988029,0.048932,102120.0,102110.0,0.19068234]
[1736198990632,0.048932,102120.0,102110.0,0.09869068]
[1736198990834,0.048932,102120.0,102110.0,0.19068234]
[1736198991524,0.048932,102120.0,102110.0,0.18968234]
[1736198991826,0.048932,102120.0,102110.0,0.19068234]
[1736198992726,0.048932,102120.0,102110.0,0.55148234]
[1736198992921,0.048932,102120.0,102110.0,0.67448234]
[1736198993125,0.048932,102120.0,102110.0,0.31368234]
[1736198994526,0.048932,102120.0,102110.0,0.19068234]
[1736198994838,0.048932,102120.0,102090.0,0.80108813]
[1736198994839,0.048939,102100.0,102090.0,0.17475647]
[1736198995044,0.048949,102080.0,102070.0,0.58389166]
[1736198995342,0.048949,102080.0,102070.0,0.22309166]
[1736198995634,0.048949,102080.0,102070.0,0.27196096]
[1736198995833,0.048949,102080.0,102070.0,0.63276096]
[1736198996036,0.048949,102080.0,102070.0,0.68171496]
[1736198996237,0.048949,102080.0,102070.0,0.1799693]
[1736198996537,0.048949,102080.0,102070.0,0.5407693]
[1736198996734,0.048949,102080.0,102070.0,0.5427693]
[1736198997827,0.048949,102080.0,102070.0,0.5477693]
[1736198999733,0.048949,102080.0,102070.0,0.63976096]
[1736199000439,0.048949,102080.0,102070.0,0.68871496]
[1736199003345,0.048949,102080.0,102070.0,0.5967233]
[1736199007445,0.14093666,102090.0,102080.0,0.048949]
[1736199007650,0.048945,102090.0,102080.0,0.50174066]
[1736199007845,0.048945,102090.0,102080.0,0.62564066]
[1736199008354,0.048945,102090.0,102080.0,0.26484066]
[1736199008564,0.048945,102090.0,102080.0,0.62664066]
[1736199008861,0.14093666,102090.0,102080.0,0.001]
[1736199009659,0.14093666,102090.0,102080.0,0.003]
[1736199010251,0.14093666,102090.0,102080.0,0.001]
[1736199011448,0.14093666,102090.0,102050.0,0.8230398]
[1736199011449,0.048949,102080.0,102050.0,0.6523198]
[1736199011653,0.23294132,102060.0,102050.0,0.2915198]
[1736199011851,0.14094966,102060.0,102050.0,0.2915198]
[1736199012057,0.048958,102060.0,102050.0,0.2915198]
[1736199012659,0.14094966,102060.0,102050.0,0.2975198]
[1736199013062,0.048958,102060.0,102050.0,0.2975198]
[1736199013251,0.048958,102060.0,102050.0,0.2955198]
[1736199013556,0.06415289,102060.0,102040.0,0.98381881]
[1736199013964,0.06415289,102060.0,102050.0,0.048963]
[1736199014264,0.06415289,102060.0,102050.0,0.056963]
[1736199014969,0.06415289,102060.0,102050.0,0.048963]
[1736199015262,0.18084726,102060.0,102050.0,0.048963]
[1736199015857,0.27283892,102060.0,102050.0,0.059963]
[1736199016053,0.63363892,102060.0,102050.0,0.011]
[1736199016758,0.51694455,102060.0,102050.0,0.011]
[1736199017063,0.60893621,102060.0,102050.0,0.011]
[1736199017364,0.51694455,102060.0,102050.0,0.011]
[1736199018061,0.66277457,102060.0,102050.0,0.011]
[1736199018460,0.64757968,102060.0,102050.0,0.011]
[1736199018761,0.64757968,102060.0,102050.0,0.008]
[1736199018963,0.6627704,102060.0,102050.0,0.008]
[1736199019153,0.64757968,102060.0,102050.0,0.008]
[1736199019353,0.73957134,102060.0,102050.0,0.008]
[1736199019651,0.73957134,102060.0,102030.0,0.16867]
[1736199019652,0.048968,102040.0,102030.0,0.16867]
[1736199019854,0.42495799,102040.0,102030.0,0.16867]
[1736199020556,0.409768,102040.0,102030.0,0.16867]
[1736199020962,0.409768,102040.0,102030.0,0.26566166]
[1736199021163,0.06415799,102040.0,102030.0,0.62846166]
[1736199021365,0.048966,102050.0,102040.0,0.048968]
[1736199021559,0.048966,102050.0,102040.0,0.14095966]
[1736199021868,0.18082415,102050.0,102040.0,0.048968]
[1736199022765,0.18082415,102050.0,102040.0,0.14095966]
[1736199022965,0.16562881,102050.0,102040.0,0.14095966]
[1736199023268,0.18082693,102050.0,102040.0,0.27235966]
[1736199023459,0.18082693,102050.0,102040.0,0.180368]
[1736199024459,0.18082693,102050.0,102040.0,0.183368]
[1736199024859,0.18082693,102050.0,102040.0,0.185368]
[1736199025560,0.18082693,102050.0,102040.0,0.309268]
[1736199026261,0.18082693,102050.0,102040.0,0.40125966]
[1736199028667,0.1808399,102050.0,102040.0,0.40125966]
[1736199030567,0.1318739,102050.0,102040.0,0.76205966]
[1736199031063,0.08374281,102050.0,102040.0,0.76205966]
[1736199031268,0.14583002,102060.0,102050.0,0.048963]
[1736199031459,0.14583002,102060.0,102050.0,0.50175466]
[1736199032270,0.06417374,102070.0,102060.0,0.048958]
[1736199032464,0.06417374,102070.0,102060.0,0.62514966]
[1736199033764,0.048956,102070.0,102060.0,0.75534966]
[1736199033958,0.048956,102070.0,102060.0,0.84734132]
[1736199033959,0.02122224,102070.0,102060.0,0.84734132]
[1736199034370,0.01722224,102070.0,102060.0,0.84734132]
[1736199034571,0.01522224,102070.0,102060.0,0.85134132]
[1736199034768,0.01522224,102070.0,102060.0,0.85334132]
[1736199035166,0.01522224,102070.0,102060.0,0.76134966]
[1736199036973,0.01522224,102070.0,102060.0,0.85334132]
[1736199039078,0.01522224,102070.0,102060.0,0.89186004]
[1736199040876,0.19478202,102080.0,102060.0,0.89186004]
[1736199041077,0.19478202,102080.0,102070.0,0.14094566]
[1736199041875,0.64757368,102080.0,102060.0,0.54626638]
[1736199042075,0.31719367,102070.0,102060.0,0.54626638]
[1736199042273,0.31719367,102070.0,102060.0,0.18546638]
[1736199042472,0.301954,102070.0,102060.0,0.18546638]
[1736199042673,0.301954,102070.0,102060.0,0.09599166]
[1736199043078,0.31719358,102070.0,102060.0,0.09599166]
[1736199043280,0.01523958,102070.0,102060.0,0.18798332]
[1736199043582,0.01523958,102070.0,102060.0,0.40524966]
[1736199043783,0.01523958,102070.0,102060.0,0.40324966]
[1736199043984,0.55558202,102080.0,102060.0,0.40324966]
[1736199044179,0.73060545,102080.0,102070.0,0.14094566]
[1736199044384,0.73060545,102080.0,102070.0,0.048954]
[1736199045485,0.55558202,102080.0,102070.0,0.048954]
[1736199045680,0.048954,102070.0,102060.0,0.14494866]
[1736199045873,0.048958,102060.0,102050.0,0.23365064]
[1736199046075,0.048963,102050.0,102040.0,0.29250075]
[1736199046383,0.50175466,102050.0,102040.0,0.29250075]
[1736199046781,0.50175466,102050.0,102030.0,0.03145421]
[1736199047079,0.048973,102030.0,102020.0,0.34147775]
[1736199047385,0.50176466,102030.0,102020.0,0.29250075]
[1736199048378,0.409773,102030.0,102020.0,0.43847041]
[1736199048581,0.409773,102030.0,102020.0,0.14596966]
[1736199048774,0.50176466,102030.0,102020.0,0.053978]
[1736199049483,0.64759468,102030.0,102020.0,0.053978]
[1736199049984,0.64859468,102030.0,102020.0,0.062978]
[1736199050383,0.64859468,102030.0,102020.0,0.060978]
[1736199050584,0.64859468,102030.0,102020.0,0.058978]
[1736199053886,0.55660302,102030.0,102020.0,0.058978]
[1736199054280,0.64859468,102030.0,102020.0,0.058978]
[1736199054480,0.50763002,102030.0,102020.0,0.15096966]
[1736199055284,0.3618,102030.0,102020.0,0.15096966]
[1736199055985,0.50276466,102030.0,102020.0,0.058978]
[1736199056487,0.410773,102030.0,102020.0,0.15096966]
[1736199056797,0.89475632,102030.0,102000.0,0.1]
[1736199057094,0.86257366,102010.0,102000.0,0.1]
[1736199057592,0.99237366,102010.0,102000.0,0.1]
[1736199058091,0.99237366,102010.0,101980.0,0.44151944]
[1736199058092,0.14098366,101990.0,101980.0,0.08072044]
[1736199058289,0.409792,101990.0,101980.0,0.048997]
[1736199058683,0.3608,101990.0,101980.0,0.048997]
[1736199058985,0.3608,101990.0,101980.0,0.14098866]
[1736199059193,0.3608,101990.0,101980.0,0.048997]
[1736199059392,0.50178166,102000.0,101980.0,0.14098866]
[1736199059591,0.40979,102000.0,101990.0,0.09199166]
[1736199059784,0.41760668,102010.0,102000.0,0.048987]
[1736199060488,0.27177666,102010.0,102000.0,0.048987]
[1736199060685,0.27077666,102010.0,102000.0,0.048987]
[1736199061995,0.14097666,102010.0,102000.0,0.048987]
[1736199062197,0.048985,102010.0,102000.0,0.048987]
[1736199062398,0.001,102010.0,102000.0,0.14097866]
[1736199062691,0.001,102010.0,102000.0,0.50177866]
[1736199063692,0.001,102010.0,102000.0,0.59477032]
[1736199063885,0.048978,102020.0,102010.0,0.048982]
[1736199064088,0.048978,102020.0,102010.0,0.14097366]
[1736199065698,0.048978,102020.0,102010.0,0.26797366]
[1736199066087,0.049978,102020.0,102010.0,0.26797366]
[1736199066695,0.048978,102020.0,102010.0,0.27097366]
[1736199066899,0.048978,102020.0,102010.0,0.27197366]
[1736199068497,0.3608,102030.0,102010.0,0.27197366]
[1736199068687,0.409777,102030.0,102020.0,0.09199166]
[1736199068893,0.409777,102030.0,102020.0,0.26726966]
[1736199070101,0.410777,102030.0,102020.0,0.26726966]
[1736199070298,0.410777,102030.0,102020.0,0.25681846]
[1736199070999,0.049977,102030.0,102020.0,0.61761846]
[1736199071200,0.049977,102030.0,102020.0,0.25681846]
[1736199072095,0.049977,102030.0,102020.0,0.70961012]
[1736199072096,0.001,102030.0,102020.0,0.70961012]
[1736199072606,0.001,102030.0,102020.0,0.61761846]
[1736199072995,0.001,102030.0,102020.0,0.70961012]
[1736199073202,0.001,102030.0,102020.0,0.61761846]
[1736199073404,0.3618,102030.0,102020.0,0.57495166]
[1736199073601,0.3618,102030.0,102020.0,0.62392966]
[1736199076511,0.3618,102030.0,102020.0,1.00572966]
[1736199077605,0.3618,102030.0,102020.0,0.75372966]
[1736199077904,0.3618,102030.0,102000.0,0.85231542]
[1736199077905,0.048982,102010.0,102000.0,0.35054076]
[1736199078101,0.770582,102010.0,102000.0,0.35054076]
[1736199078399,0.902282,102010.0,102000.0,0.35054076]
[1736199078603,0.902282,102010.0,102000.0,0.09199166]
[1736199078804,0.902282,102010.0,101990.0,0.80959374]
[1736199078805,0.048987,102000.0,101990.0,0.9015854]
[1736199079004,0.409787,102000.0,101990.0,0.93293562]
[1736199079797,0.409787,102000.0,101990.0,0.93593562]
[1736199080099,0.4975108,102000.0,101990.0,0.17533088]
[1736199080293,0.4485238,102000.0,101990.0,0.17533088]
[1736199081209,0.4495238,102000.0,101990.0,0.18233088]
[1736199081409,0.4495238,102000.0,101990.0,0.18033088]
[1736199081606,0.4485238,102000.0,101990.0,0.17333088]
[1736199081913,0.0887238,102000.0,101990.0,0.18033088]
[1736199082118,0.0887238,102000.0,101990.0,0.18233088]
[1736199082302,0.001,102000.0,101990.0,0.18233088]
[1736199085310,0.3618,102000.0,101990.0,0.18233088]
[1736199087312,0.0887238,102000.0,101990.0,0.18233088]
[1736199090116,0.001,102000.0,101990.0,0.18233088]
[1736199091810,0.59477032,102000.0,101970.0,0.35117285]
[1736199092018,0.7216,101980.0,101970.0,0.40017285]
[1736199092404,0.7216,101980.0,101970.0,0.49216451]
[1736199092718,0.7216,101980.0,101970.0,0.14099166]
[1736199093520,0.7216,101980.0,101970.0,0.14799166]
[1736199093810,0.7216,101980.0,101970.0,0.18625211]
[1736199094017,0.81042224,101980.0,101970.0,0.18625211]
[1736199094216,0.81142224,101980.0,101970.0,0.18625211]
[1736199096419,0.81142224,101980.0,101970.0,0.18525211]
[1736199097218,0.81042224,101980.0,101970.0,0.18225211]
[1736199097712,0.7226,101980.0,101970.0,0.18225211]
[1736199098209,0.001,101980.0,101970.0,0.27424377]
[1736199098412,0.68281332,101990.0,101980.0,0.048997]
[1736199098609,0.68281332,101990.0,101980.0,0.14098866]
[1736199099720,0.68281332,101990.0,101980.0,0.14198866]
[1736199100111,0.47789476,101990.0,101980.0,0.14198866]
[1736199100411,0.47789476,101990.0,101980.0,0.14298866]
[1736199102014,0.34079225,101990.0,101980.0,0.14298866]
[1736199102213,0.34079225,101990.0,101980.0,0.27968866]
[1736199102414,0.43278391,101990.0,101980.0,0.050997]
[1736199102614,0.048997,101980.0,101970.0,0.08725945]
[1736199102816,0.538597,101980.0,101970.0,0.08725945]
[1736199103026,0.4896,101980.0,101970.0,0.17925111]
[1736199103221,0.4896,101980.0,101950.0,0.532051]
[1736199103520,0.4896,101980.0,101970.0,0.14099266]
[1736199103730,0.93822224,101980.0,101970.0,0.14399266]
[1736199103916,0.93922224,101980.0,101970.0,0.14699266]
[1736199104220,0.93934723,101980.0,101970.0,0.14699266]
[1736199104417,0.94034723,101980.0,101970.0,0.14099266]
[1736199104824,1.05744355,101980.0,101970.0,0.14099266]
[1736199106326,1.05644355,101980.0,101970.0,0.14399266]
[1736199107119,1.05644355,101980.0,101970.0,0.23598432]
[1736199107320,0.92764355,101980.0,101970.0,0.23598432]
[1736199107920,0.81054723,101980.0,101970.0,0.23598432]
[1736199108622,0.81054723,101980.0,101970.0,0.28568285]
[1736199111332,0.78136333,101980.0,101970.0,0.28568285]
[1736199111934,0.76154524,101980.0,101970.0,0.28568285]
[1736199113836,0.69149524,101980.0,101970.0,0.28568285]
[1736199114535,0.69149524,101980.0,101970.0,0.76876285]
[1736199117837,0.65666524,101980.0,101970.0,0.76876285]
[1736199118846,0.65666524,101980.0,101970.0,0.67677119]
[1736199119135,0.65666524,101980.0,101970.0,0.76876285]
[1736199120440,0.65666524,101980.0,101970.0,0.67677119]
[1736199120629,0.65666524,101980.0,101970.0,0.76876285]
[1736199121340,0.77376156,101980.0,101970.0,0.76876285]
[1736199121543,0.56684355,101980.0,101970.0,0.76876285]
[1736199121734,0.54543355,101980.0,101970.0,0.76876285]
[1736199123947,0.54543355,101980.0,101970.0,0.76876285]
[1736199126447,0.51007355,101980.0,101970.0,0.76876285]
[1736199127439,0.47902131,101980.0,101970.0,0.76876285]
[1736199127947,0.11822131,101980.0,101970.0,0.76876285]
[1736199128946,0.01966863,101980.0,101970.0,0.76876285]
[1736199129250,0.63613557,101990.0,101970.0,0.86676385]
[1736199129449,0.63613557,101990.0,101980.0,0.14098866]
[1736199129748,0.62884547,101990.0,101980.0,0.14098866]
[1736199130444,0.78762268,102000.0,101980.0,0.50178866]
[1736199130650,0.78762268,102000.0,101990.0,0.09199166]
[1736199130951,0.78762268,102000.0,101990.0,0.14098366]
[1736199132250,0.6129,102000.0,101990.0,0.14098366]
[1736199132453,0.6139,102000.0,101980.0,0.532035]
[1736199132751,0.3608,101990.0,101980.0,0.581032]
[1736199133443,0.3608,101990.0,101980.0,0.67302366]
[1736199134440,0.1622567,101990.0,101980.0,0.67302366]
[1736199134645,0.1622567,101990.0,101980.0,0.67602366]
[1736199135150,0.14225103,101990.0,101980.0,0.67602366]
[1736199135551,0.14325103,101990.0,101980.0,0.67802366]
[1736199137955,0.10857103,101990.0,101980.0,0.67802366]
[1736199138654,0.10857103,101990.0,101980.0,0.72782803]
[1736199141059,0.07442103,101990.0,101980.0,0.72782803]
[1736199141248,0.7474,102000.0,101980.0,0.72782803]
[1736199141448,0.3608,101990.0,101980.0,0.63583637]
[1736199141652,0.29615,101990.0,101980.0,0.63583637]
[1736199141958,0.23817,101990.0,101980.0,0.63583637]
[1736199142558,0.23817,101990.0,101980.0,0.72782803]
[1736199144348,0.20262,101990.0,101980.0,0.72782803]
[1736199144562,0.7474,102000.0,101980.0,0.72782803]
[1736199144858,0.7474,102000.0,101990.0,0.14098366]
[1736199145660,0.6796,102000.0,101990.0,0.23297532]
[1736199145860,0.65103915,102000.0,101990.0,0.23297532]
[1736199146262,0.65003915,102000.0,101990.0,0.14398366]
[1736199146761,0.63903915,102000.0,101990.0,0.14398366]
[1736199146962,0.63903915,102000.0,101990.0,0.14498366]
[1736199149554,0.56894915,102000.0,101990.0,0.14498366]
[1736199151667,0.34189751,102000.0,101990.0,0.14498366]
[1736199153364,0.32219507,102000.0,101990.0,0.14498366]
[1736199154960,0.21585507,102000.0,101990.0,0.14498366]
[1736199155155,0.626,102010.0,102000.0,0.048987]
[1736199155358,0.626,102010.0,102000.0,0.23297032]
[1736199156459,0.628,102010.0,102000.0,0.23297032]
[1736199157265,0.2672,102010.0,102000.0,0.23297032]
[1736199158065,0.2672,102010.0,102000.0,0.14097866]
[1736199158374,0.628,102010.0,102000.0,0.14097866]
[1736199158571,0.2672,102010.0,102000.0,0.14097866]
[1736199158764,0.628,102010.0,102000.0,0.14097866]
[1736199160162,0.7605,102010.0,102000.0,0.14097866]
[1736199160471,0.7605,102010.0,102000.0,0.048987]
[1736199160866,0.7605,102010.0,101990.0,0.14098366]
[1736199161168,0.3608,102000.0,101990.0,0.14098366]
[1736199161956,0.3608,102000.0,101990.0,0.14498366]
[1736199162364,0.3608,102000.0,101970.0,0.531962]
[1736199162563,0.3608,101980.0,101970.0,0.62395366]
[1736199162962,0.7216,101980.0,101970.0,0.62395366]
[1736199163463,0.7216,101980.0,101970.0,0.71594532]
[1736199163659,0.7216,101980.0,101970.0,0.71994532]
[1736199164765,0.7226,101980.0,101970.0,0.71994532]
[1736199166374,0.68758,101980.0,101970.0,0.71994532]
[1736199167173,0.65214,101980.0,101970.0,0.71994532]
[1736199167366,0.66100855,101990.0,101980.0,0.048997]
[1736199167569,0.65100855,101990.0,101980.0,0.14098866]
[1736199168566,0.65100855,101990.0,101980.0,0.14398866]
[1736199168765,0.65200855,101990.0,101980.0,0.14398866]
[1736199171974,0.64900855,101990.0,101980.0,0.14398866]
[1736199174676,0.57958855,101990.0,101980.0,0.14398866]
[1736199174876,0.18387855,101990.0,101980.0,0.14398866]
[1736199176077,0.08901233,101990.0,101980.0,0.14398866]
[1736199176267,0.3608,102000.0,101990.0,0.048992]
[1736199176470,0.3608,102000.0,101990.0,0.14098366]
[1736199177479,0.3608,102000.0,101990.0,0.14198366]
[1736199177873,0.3608,102000.0,101990.0,0.62494366]
[1736199178072,0.4648,102000.0,101990.0,0.62594366]
[1736199178577,0.42924,102000.0,101990.0,0.62594366]
[1736199178880,0.104,102000.0,101990.0,0.62594366]
[1736199179379,0.5733,102000.0,101990.0,0.62594366]
[1736199179579,0.2125,102000.0,101990.0,0.62594366]
[1736199179773,0.5733,102000.0,101990.0,0.62594366]
[1736199183081,0.5733,102000.0,101990.0,0.67575155]
[1736199183981,0.14181,102000.0,101990.0,0.67575155]
[1736199185383,0.14181,102000.0,101990.0,0.76774321]
[1736199185580,0.14181,102000.0,101990.0,0.67575155]
[1736199186079,0.50261,102000.0,101990.0,0.67575155]
[1736199186479,0.14181,102000.0,101990.0,0.67575155]
[1736199186980,0.1085,102000.0,101990.0,0.67575155]
[1736199189487,0.212,102000.0,101990.0,0.67575155]
[1736199189987,0.5728,102000.0,101990.0,0.67575155]
[1736199190381,0.56300069,102000.0,101990.0,0.67575155]
[1736199191890,0.52721069,102000.0,101990.0,0.67575155]
[1736199192690,0.45852462,102000.0,101990.0,0.76774321]
[1736199192884,0.45852462,102000.0,101990.0,0.67575155]
[1736199195086,0.45852462,102000.0,101990.0,0.70476395]
[1736199195388,0.45852462,102000.0,101990.0,0.41855989]
[1736199195587,0.55822462,102000.0,101990.0,0.47906192]
[1736199195787,0.66052462,102000.0,101990.0,0.47906192]
[1736199195984,0.77790129,102000.0,101990.0,0.47906192]
[1736199196182,0.77790129,102000.0,101990.0,0.58855595]
[1736199196482,0.66052462,102000.0,101990.0,0.58855595]
[1736199197191,0.66052462,102000.0,101990.0,0.55975474]
[1736199197781,0.77794225,102000.0,101990.0,0.55975474]
[1736199200994,0.39913895,102000.0,101990.0,0.65195759]
[1736199201193,0.39913895,102000.0,101990.0,0.55975474]
[1736199202103,0.39177904,102000.0,101990.0,0.55975474]
[1736199202391,0.11741763,102000.0,101990.0,0.55975474]
[1736199203792,0.51782967,102010.0,101990.0,0.96954674]
[1736199203998,0.20814016,102010.0,102000.0,0.5941927]
[1736199204294,0.3161,102020.0,102000.0,0.6942927]
[1736199204497,0.3161,102020.0,102010.0,0.14118485]
[1736199205697,0.4335825,102020.0,102010.0,0.14118485]
[1736199206694,0.4345825,102020.0,102010.0,0.14118485]
[1736199207493,0.4365825,102020.0,102010.0,0.14118485]
[1736199207990,0.4365825,102020.0,102010.0,0.14114574]
[1736199210693,0.1204825,102020.0,102010.0,0.14114574]
[1736199210913,0.1204825,102020.0,102010.0,0.24114574]
[1736199211203,0.1174825,102020.0,102010.0,0.34224574]
[1736199211793,0.0822825,102020.0,102010.0,0.39004182]
[1736199212199,0.003,102020.0,102010.0,0.39004182]
[1736199213000,0.003,102020.0,102010.0,0.39001703]
[1736199214490,0.003,102020.0,102010.0,0.75081703]
[1736199214697,0.003,102020.0,102010.0,0.18891703]
[1736199217008,0.003,102020.0,102010.0,0.2177319]
[1736199223610,0.3608,102030.0,102010.0,0.2177319]
[1736199223908,0.6731,102040.0,102030.0,0.048973]
[1736199224107,1.0339,102040.0,102030.0,0.10944991]
[1736199225514,1.0429,102040.0,102030.0,0.11044991]
[1736199226011,1.0479,102040.0,102030.0,0.11044991]
[1736199229016,1.0479,102040.0,102030.0,0.15164695]
[1736199229519,0.014,102040.0,102030.0,0.21212386]
[1736199231520,0.012,102040.0,102030.0,0.21212386]
[1736199232413,0.3728,102040.0,102030.0,0.21212386]
[1736199232617,0.008,102040.0,102030.0,0.21212386]
[1736199233424,0.3688,102040.0,102030.0,0.21212386]
[1736199233618,0.008,102040.0,102030.0,0.21212386]
[1736199233919,0.3688,102040.0,102030.0,0.21212386]
[1736199237008,0.6982,102040.0,102030.0,0.21212386]
[1736199238322,0.3374,102040.0,102030.0,0.21212386]
[1736199239108,0.6982,102040.0,102030.0,0.21212386]
[1736199239318,0.6982,102040.0,102030.0,0.21208288]
[1736199239519,0.3374,102040.0,102030.0,0.21208288]
[1736199241217,0.008,102040.0,102030.0,0.21208288]
[1736199241619,0.008,102040.0,102030.0,0.32348288]
[1736199242422,0.50739877,102050.0,102040.0,0.048968]
[1736199242618,0.50739877,102050.0,102040.0,0.16988084]
[1736199243025,0.3608,102050.0,102040.0,0.16986414]
[1736199244628,0.3648,102050.0,102040.0,0.16986414]
[1736199245029,0.3738,102050.0,102040.0,0.17086414]
[1736199245822,0.3698,102050.0,102040.0,0.17086414]
[1736199246024,0.3608,102050.0,102040.0,0.16986414]
[1736199246224,0.3618,102050.0,102040.0,0.16986414]
[1736199246630,0.001,102050.0,102040.0,0.23031221]
[1736199246831,0.14659877,102060.0,102050.0,0.048963]
[1736199247031,0.14659877,102060.0,102050.0,0.64105914]
[1736199247221,0.13681177,102060.0,102050.0,1.18430721]
[1736199247532,0.13681177,102060.0,102050.0,1.12385914]
[1736199247719,0.49761177,102060.0,102050.0,0.531763]
[1736199247922,0.44870747,102060.0,102050.0,0.59221107]
[1736199248121,0.77600747,102060.0,102050.0,0.59221107]
[1736199248430,0.77600747,102060.0,102050.0,0.10941107]
[1736199248624,0.45070747,102060.0,102050.0,0.10941107]
[1736199248924,0.6901,102060.0,102050.0,0.10941107]
[1736199250220,0.6901,102060.0,102030.0,0.09017004]
[1736199250221,0.85995614,102060.0,102030.0,0.04897]
[1736199250421,0.7216,102040.0,102030.0,0.10941807]
[1736199250834,1.066,102040.0,102030.0,0.10941807]
[1736199251132,1.15389377,102040.0,102030.0,0.14112003]
[1736199251434,1.15389377,102040.0,102030.0,0.14412003]
[1736199251835,1.15489377,102040.0,102030.0,0.15012003]
[1736199252134,1.067,102040.0,102030.0,0.15012003]
[1736199252722,1.067,102040.0,102030.0,0.18589642]
[1736199252927,1.066,102040.0,102030.0,0.18889642]
[1736199253936,1.066,102040.0,102030.0,0.18689642]
[1736199256528,1.20711803,102040.0,102030.0,0.04577639]
[1736199257237,1.50711803,102040.0,102000.0,0.14113703]
[1736199257429,0.7216,102010.0,102000.0,0.14113703]
[1736199258140,0.7216,102010.0,102000.0,0.18269314]
[1736199258442,0.7216,102010.0,102000.0,0.18769314]
[1736199258831,0.7226,102010.0,102000.0,0.19669314]
[1736199260031,0.81044217,102010.0,102000.0,0.19669314]
[1736199260731,0.81044217,102010.0,102000.0,0.19169314]
[1736199260933,0.81044217,102010.0,102000.0,0.19569314]
[1736199262142,0.44964217,102010.0,102000.0,0.19569314]
[1736199264539,0.3618,102010.0,102000.0,0.31809314]
[1736199265546,0.3618,102010.0,102000.0,0.19569314]
[1736199267143,0.3618,102010.0,102000.0,0.28784317]
[1736199267337,0.68654217,102020.0,102010.0,0.048982]
[1736199267537,0.68654217,102020.0,102010.0,0.14113203]
[1736199267844,0.44864217,102020.0,102010.0,0.14113203]
[1736199268147,0.44864217,102020.0,102010.0,0.25643203]
[1736199268444,0.3608,102020.0,102010.0,0.25643203]
[1736199269048,0.44864217,102030.0,102020.0,0.048978]
[1736199270550,0.44864217,102030.0,102020.0,0.14112803]
[1736199270847,0.44864217,102030.0,102020.0,0.14212803]
[1736199271049,0.44864217,102030.0,102020.0,0.14412803]
[1736199271951,0.44864217,102030.0,102020.0,0.051978]
[1736199274554,0.44864217,102030.0,102020.0,0.14412803]
[1736199275143,0.44864217,102030.0,102020.0,0.051978]
[1736199276446,0.44864217,102030.0,102020.0,0.14412803]
[1736199276651,0.5897652,102030.0,102020.0,0.051978]
[1736199276849,0.5897652,102030.0,102020.0,0.08687985]
[1736199277051,0.49761517,102030.0,102020.0,0.08687985]
[1736199277251,0.44864217,102030.0,102020.0,0.08687985]
[1736199277449,0.47771757,102030.0,102020.0,0.08687985]
[1736199278460,0.52669057,102030.0,102020.0,0.08687985]
[1736199278752,0.55612704,102030.0,102020.0,0.08687985]
[1736199280851,0.73235079,102030.0,102020.0,0.08687985]
[1736199281159,0.68337779,102030.0,102020.0,0.08687985]
[1736199281657,0.50715404,102030.0,102020.0,0.08687985]
[1736199283856,0.55612704,102030.0,102020.0,0.03790185]
[1736199284056,0.82450082,102030.0,102020.0,0.03790185]
[1736199285562,0.64827707,102030.0,102020.0,0.03790185]
[1736199287761,0.50192303,102030.0,102020.0,0.03790185]
[1736199290469,0.67814678,102030.0,102020.0,0.03790185]
[1736199292967,0.64650207,102030.0,102020.0,0.03790185]
[1736199299868,0.048985,102010.0,101990.0,0.17487744]
[1736199300070,0.409787,102000.0,101990.0,0.23538276]
[1736199300776,0.409787,102000.0,101990.0,0.22204486]
[1736199300981,0.409787,102000.0,101990.0,0.22804486]
[1736199301182,0.3618,102000.0,101990.0,0.23704486]
[1736199301371,0.3618,102000.0,101990.0,0.28603686]
[1736199301572,0.47920195,102000.0,101990.0,0.28603686]
[1736199301768,0.47920195,102000.0,101990.0,0.28003686]
[1736199301969,0.48020195,102000.0,101990.0,0.28603686]
[1736199302477,0.48020195,102000.0,101990.0,0.23704486]
[1736199302675,0.47920195,102000.0,101990.0,0.23404486]
[1736199303067,0.52718895,102000.0,101990.0,0.22504486]
[1736199303280,0.52818895,102000.0,101990.0,0.23104486]
[1736199303580,0.52818895,102000.0,101990.0,0.17053954]
[1736199303581,0.58869427,102000.0,101990.0,0.17053954]
[1736199305679,0.53970727,102000.0,101990.0,0.17053954]
[1736199305887,0.58869927,102000.0,101990.0,0.17053954]
[1736199306186,0.61804976,102000.0,101990.0,0.17053954]
[1736199307280,0.67855508,102000.0,101990.0,0.04473954]